bitfinex/quotes_SOLUSD_20241231
["timestamp","ask_amount","ask_price","bid_price","bid_amount"]
[1735672222429,8.09567432,195.04,194.98,12.8217]
[1735672223909,8.09567432,195.03,194.99,20.0]
[1735672224905,8.09567432,195.05,195.0,20.0]
[1735672225109,8.09567432,195.04,195.0,20.0]
[1735672225406,8.09567432,195.03,195.0,20.0]
[1735672225607,8.09567432,195.04,195.0,20.0]
[1735672226290,8.09567432,195.05,195.0,20.0]
[1735672227282,23.776884,195.1,195.0,20.0]
[1735672227487,8.09567432,195.07,195.0,28.09567432]
[1735672227804,7.9329196,195.12,195.03,8.09567432]
[1735672228008,8.09567432,195.11,195.04,28.09567432]
[1735672229116,9.4954196,195.13,195.04,28.09567432]
[1735672229423,8.09567432,195.12,195.06,8.09567432]
[1735672230491,8.09567432,195.12,195.05,8.09567432]
[1735672232011,8.09567432,195.08,195.04,20.0]
[1735672232513,8.09567432,195.08,195.05,20.0]
[1735672233011,8.09567432,195.07,195.01,6.0104]
[1735672233186,8.09567432,195.06,195.01,6.0104]
[1735672233391,36.7098036,195.12,195.01,6.0104]
[1735672233392,8.09567432,195.07,195.01,6.0104]
[1735672235115,8.09567432,195.08,195.01,14.10607432]
[1735672235432,8.09567432,195.07,195.01,6.0104]
[1735672237917,8.09567432,195.09,195.01,14.10607432]
[1735672238093,8.09567432,195.08,195.01,14.10607432]
[1735672238616,8.09567432,195.07,195.01,6.0104]
[1735672244125,28.776884,195.12,195.01,14.10607432]
[1735672244333,8.09567432,195.08,195.01,14.10607432]
[1735672245312,8.09567432,195.09,195.02,8.09567432]
[1735672245502,9.4954196,195.13,195.03,8.09567432]
[1735672245699,8.09567432,195.1,195.03,8.09567432]
[1735672246405,8.09567432,195.11,195.04,28.09567432]
[1735672246609,8.09567432,195.1,195.04,20.0]
[1735672248010,8.09567432,195.11,195.05,8.09567432]
[1735672248334,8.09567432,195.1,195.04,28.09567432]
[1735672248612,8.09567432,195.09,195.04,20.0]
[1735672249601,8.09567432,195.1,195.04,20.0]
[1735672249817,8.09567432,195.09,195.02,8.09567432]
[1735672250403,7.9329196,195.15,195.06,8.09567432]
[1735672250613,8.09567432,195.14,195.07,8.09567432]
[1735672250930,7.9329196,195.15,195.1,8.09567432]
[1735672251605,8.09567432,195.17,195.1,8.09567432]
[1735672251802,16.02859392,195.19,195.11,8.09567432]
[1735672252012,7.9329196,195.19,195.11,8.09567432]
[1735672252325,16.02859392,195.19,195.12,28.09567432]
[1735672252725,7.9329196,195.19,195.13,8.09567432]
[1735672253103,8.09567432,195.2,195.13,8.09567432]
[1735672254924,8.09567432,195.19,195.12,28.09567432]
[1735672255228,8.09567432,195.18,195.12,20.0]
[1735672255410,8.09567432,195.14,195.08,1.5684]
[1735672255931,8.09567432,195.16,195.08,1.5684]
[1735672256103,1.6548,195.23,195.11,20.0]
[1735672256421,8.09567432,195.19,195.12,8.09567432]
[1735672258642,8.09567432,195.18,195.12,8.09567432]
[1735672258855,8.09567432,195.19,195.12,8.09567432]
[1735672259009,8.09567432,195.18,195.12,8.09567432]
[1735672260728,8.09567432,195.19,195.12,8.09567432]
[1735672261519,1.6548,195.23,195.15,20.0]
[1735672261724,8.09567432,195.21,195.15,8.09567432]
[1735672262623,8.09567432,195.2,195.14,6.246]
[1735672263128,8.09567432,195.19,195.14,6.246]
[1735672263729,8.09567432,195.2,195.14,6.246]
[1735672264030,8.09567432,195.19,195.14,6.246]
[1735672264211,8.09567432,195.17,195.09,19.0603]
[1735672264411,8.09567432,195.18,195.11,8.09567432]
[1735672264709,8.09567432,195.21,195.14,8.09567432]
[1735672265228,8.09567432,195.19,195.13,20.0]
[1735672266730,8.09567432,195.19,195.13,28.09567432]
[1735672268334,8.09567432,195.22,195.15,8.09567432]
[1735672269915,8.09567432,195.21,195.14,8.09567432]
[1735672270110,8.09567432,195.2,195.13,20.0]
[1735672270322,8.09567432,195.21,195.14,8.09567432]
[1735672270526,8.09567432,195.22,195.15,8.09567432]
[1735672270750,8.09567432,195.23,195.16,8.09567432]
[1735672271149,1.5455,195.28,195.14,12.8113]
[1735672271150,8.09567432,195.25,195.18,8.09567432]
[1735672272744,8.09567432,195.24,195.17,14.34167432]
[1735672274736,8.09567432,195.24,195.17,6.246]
[1735672274942,32.38269728,195.3,195.17,6.246]
[1735672274943,8.09567432,195.22,195.17,6.246]
[1735672275164,8.09567432,195.22,195.16,1.6059]
[1735672279560,8.09567432,195.21,195.16,1.6059]
[1735672281134,8.09567432,195.22,195.16,1.6059]
[1735672281332,8.09567432,195.23,195.16,29.70157432]
[1735672281538,8.09567432,195.24,195.17,8.09567432]
[1735672282047,20.0,195.29,195.19,8.09567432]
[1735672282250,8.09567432,195.25,195.19,8.09567432]
[1735672283843,12.7997,195.32,195.2,8.09567432]
[1735672284029,8.09567432,195.27,195.2,8.09567432]
[1735672284950,12.7997,195.32,195.21,8.09567432]
[1735672284951,8.09567432,195.28,195.21,8.09567432]
[1735672285135,8.09567432,195.28,195.22,8.09567432]
[1735672285531,1.5455,195.33,195.22,8.09567432]
[1735672285753,8.09567432,195.29,195.22,8.09567432]
[1735672288455,8.09567432,195.28,195.21,8.09567432]
[1735672289653,8.09567432,195.29,195.22,8.09567432]
[1735672290033,12.7975,195.36,195.24,8.09567432]
[1735672290252,8.09567432,195.32,195.24,9.71437432]
[1735672290833,8.09567432,195.32,195.25,8.09567432]
[1735672291346,7.9329196,195.41,195.31,8.09567432]
[1735672291548,8.09567432,195.39,195.32,8.09567432]
[1735672292441,9.5625196,195.44,195.36,8.09567432]
[1735672292756,8.09567432,195.43,195.36,8.09567432]
[1735672292960,8.09567432,195.42,195.35,28.09567432]
[1735672293463,14.4185,195.49,195.35,20.0]
[1735672293464,8.09567432,195.41,195.35,20.0]
[1735672293665,8.09567432,195.39,195.35,20.0]
[1735672295153,8.09567432,195.38,195.32,6.4812]
[1735672295357,8.09567432,195.39,195.32,14.57687432]
[1735672295531,8.09567432,195.39,195.33,8.09567432]
[1735672295738,8.09567432,195.4,195.33,8.09567432]
[1735672296537,8.09567432,195.41,195.35,20.0]
[1735672297358,8.09567432,195.41,195.35,28.09567432]
[1735672299156,8.09567432,195.42,195.35,28.09567432]
[1735672299444,8.09567432,195.44,195.37,8.09567432]
[1735672301050,8.09567432,195.43,195.36,8.09567432]
[1735672301249,8.09567432,195.42,195.37,20.0]
[1735672304061,8.09567432,195.39,195.32,14.57687432]
[1735672304584,23.776884,195.45,195.36,20.0]
[1735672304585,8.09567432,195.4,195.36,20.0]
[1735672305083,8.09567432,195.39,195.32,14.57687432]
[1735672306482,8.09567432,195.37,195.32,6.4812]
[1735672306667,12.7916,195.44,195.32,6.4812]
[1735672306854,8.09567432,195.4,195.33,8.09567432]
[1735672307377,8.09567432,195.39,195.32,14.57687432]
[1735672308072,12.7899,195.47,195.33,8.09567432]
[1735672308073,8.09567432,195.4,195.33,8.09567432]
[1735672308488,23.776884,195.46,195.32,6.4812]
[1735672308489,8.09567432,195.41,195.34,8.09567432]
[1735672309072,8.09567432,195.42,195.35,28.09567432]
[1735672309462,8.09567432,195.41,195.35,20.0]
[1735672310853,23.776884,195.46,195.35,28.09567432]
[1735672310854,8.09567432,195.42,195.35,28.09567432]
[1735672311054,8.09567432,195.41,195.35,20.0]
[1735672312578,8.09567432,195.43,195.36,28.09567432]
[1735672313054,8.09567432,195.44,195.37,8.09567432]
[1735672313253,8.09567432,195.44,195.38,28.09567432]
[1735672314578,8.09567432,195.46,195.39,8.09567432]
[1735672315576,8.09567432,195.46,195.39,9.76077432]
[1735672315875,12.7859,195.53,195.41,8.09567432]
[1735672316081,8.09567432,195.46,195.4,14.35777432]
[1735672316263,8.09567432,195.47,195.4,14.35777432]
[1735672316458,8.09567432,195.47,195.41,8.09567432]
[1735672317959,8.09567432,195.45,195.4,6.2621]
[1735672318162,8.09567432,195.44,195.4,26.2621]
[1735672318360,32.38269728,195.5,195.4,26.2621]
[1735672318361,8.09567432,195.45,195.4,26.2621]
[1735672319387,23.776884,195.53,195.4,26.2621]
[1735672319603,8.09567432,195.47,195.4,34.35777432]
[1735672321969,8.09567432,195.46,195.4,26.2621]
[1735672322164,8.09567432,195.45,195.4,26.2621]
[1735672322366,8.09567432,195.44,195.4,26.2621]
[1735672322688,8.09567432,195.43,195.4,20.0]
[1735672323083,8.09567432,195.41,195.34,8.1492]
[1735672323267,8.09567432,195.38,195.34,8.1492]
[1735672323884,8.09567432,195.39,195.34,8.1492]
[1735672324185,8.09567432,195.38,195.34,8.1492]
[1735672325390,8.09567432,195.38,195.34,6.5911]
[1735672325692,8.09567432,195.38,195.3,8.09567432]
[1735672326290,8.09567432,195.37,195.33,20.0]
[1735672326866,8.09567432,195.36,195.29,29.04607432]
[1735672327168,8.09567432,195.36,195.32,20.0]
[1735672327768,8.09567432,195.35,195.32,20.0]
[1735672327967,8.09567432,195.36,195.29,8.1492]
[1735672328191,8.09567432,195.33,195.29,8.1492]
[1735672328395,8.09567432,195.34,195.29,8.1492]
[1735672328693,8.09567432,195.35,195.29,8.1492]
[1735672329273,8.09567432,195.35,195.29,16.24487432]
[1735672329467,8.09567432,195.36,195.29,16.24487432]
[1735672329682,8.09567432,195.37,195.3,8.09567432]
[1735672329994,23.776884,195.42,195.29,8.1492]
[1735672329995,8.09567432,195.36,195.29,16.24487432]
[1735672330374,8.09567432,195.35,195.29,8.1492]
[1735672331900,23.776884,195.42,195.29,8.1492]
[1735672332065,8.09567432,195.36,195.29,8.1492]
[1735672332470,8.09567432,195.35,195.29,8.1492]
[1735672332768,8.09567432,195.34,195.29,8.1492]
[1735672333492,8.09567432,195.31,195.24,8.09567432]
[1735672334174,8.09567432,195.31,195.23,9.69107432]
[1735672334368,8.09567432,195.3,195.23,9.69107432]
[1735672335393,23.776884,195.36,195.25,8.09567432]
[1735672335588,8.09567432,195.32,195.25,8.09567432]
[1735672342891,8.09567432,195.32,195.24,8.09567432]
[1735672343097,8.09567432,195.31,195.23,9.69107432]
[1735672343297,8.09567432,195.31,195.24,8.09567432]
[1735672343877,8.09567432,195.31,195.23,9.69107432]
[1735672344798,8.09567432,195.3,195.23,9.69107432]
[1735672345104,8.09567432,195.28,195.22,6.5579244]
[1735672348272,8.09567432,195.26,195.22,0.1066244]
[1735672348884,8.09567432,195.24,195.22,0.1066244]
[1735672349109,8.09567432,195.23,195.22,0.1066244]
[1735672352493,1.5937,195.29,195.22,0.1066244]
[1735672352713,8.09567432,195.26,195.22,0.1066244]
[1735672353819,8.09567432,195.27,195.22,0.1066244]
[1735672355919,8.09567432,195.25,195.22,0.1066244]
[1735672356237,8.09567432,195.27,195.22,0.1066244]
[1735672356514,8.09567432,195.3,195.23,8.09567432]
[1735672356929,8.09567432,195.31,195.24,8.09567432]
[1735672357125,8.09567432,195.32,195.25,8.09567432]
[1735672359340,8.09567432,195.32,195.24,6.2206]
[1735672359341,8.09567432,195.3,195.24,6.2206]
[1735672360546,8.09567432,195.32,195.25,8.09567432]
[1735672361546,8.09567432,195.31,195.24,14.31627432]
[1735672361722,8.09567432,195.31,195.25,12.804]
[1735672361923,23.776884,195.37,195.25,20.89967432]
[1735672362245,8.09567432,195.33,195.26,8.09567432]
[1735672362453,8.09567432,195.35,195.27,8.09567432]
[1735672363239,4.98361674,195.43,195.29,1.6041]
[1735672363545,8.09567432,195.37,195.3,8.09567432]
[1735672364316,20.0,195.41,195.3,8.09567432]
[1735672364519,8.09567432,195.37,195.3,14.75427432]
[1735672364733,7.59567432,195.37,195.3,14.75427432]
[1735672366550,7.59567432,195.37,195.3,6.6586]
[1735672367031,8.09567432,195.36,195.3,6.6586]
[1735672368239,8.09567432,195.31,195.22,6.7652244]
[1735672368439,8.09567432,195.28,195.22,6.7652244]
[1735672370229,8.09567432,195.29,195.22,6.7652244]
[1735672370456,8.09567432,195.29,195.22,14.86089872]
[1735672372025,8.09567432,195.3,195.23,8.09567432]
[1735672373048,8.09567432,195.29,195.22,14.86089872]
[1735672374530,8.09567432,195.3,195.23,20.90107432]
[1735672375143,8.09567432,195.29,195.23,12.8054]
[1735672375537,8.09567432,195.3,195.23,12.8054]
[1735672376440,8.09567432,195.29,195.23,12.8054]
[1735672381634,8.09567432,195.28,195.23,12.8054]
[1735672382940,8.09567432,195.28,195.22,6.7652244]
[1735672383139,19.3571,195.37,195.22,0.1066244]
[1735672383140,8.09567432,195.25,195.22,0.1066244]
[1735672385742,8.09567432,195.26,195.22,0.1066244]
[1735672386047,8.09567432,195.28,195.22,0.1066244]
[1735672386239,8.09567432,195.29,195.22,8.20229872]
[1735672386438,8.09567432,195.3,195.23,8.09567432]
[1735672388353,5.36639452,195.36,195.26,8.09567432]
[1735672388558,8.09567432,195.34,195.27,8.09567432]
[1735672389362,8.09567432,195.35,195.28,8.09567432]
[1735672390338,8.09567432,195.35,195.26,32.803]
[1735672390556,8.09567432,195.35,195.28,8.09567432]
[1735672392363,8.09567432,195.34,195.27,8.09567432]
[1735672393064,8.09567432,195.35,195.28,8.09567432]
[1735672393968,8.09567432,195.34,195.27,8.09567432]
[1735672394147,8.09567432,195.35,195.27,8.09567432]
[1735672394348,8.09567432,195.34,195.27,8.09567432]
[1735672397555,8.09567432,195.33,195.26,40.89867432]
[1735672398568,23.776884,195.39,195.26,40.89867432]
[1735672398569,1.621,195.41,195.28,8.09567432]
[1735672398875,8.09567432,195.34,195.27,8.09567432]
[1735672399788,8.09567432,195.35,195.27,8.09567432]
[1735672400794,1.621,195.41,195.31,8.09567432]
[1735672400957,8.09567432,195.39,195.31,14.30747432]
[1735672401477,8.09567432,195.38,195.31,14.30747432]
[1735672402171,12.7919,195.44,195.31,14.30747432]
[1735672402477,8.09567432,195.39,195.33,1.6188]
[1735672402671,8.09567432,195.38,195.33,1.6188]
[1735672402974,8.09567432,195.36,195.33,1.6188]
[1735672403175,8.09567432,195.37,195.33,1.6188]
[1735672403583,8.09567432,195.38,195.33,1.6188]
[1735672410466,8.09567432,195.39,195.33,1.6188]
[1735672413878,8.09567432,195.38,195.33,1.6188]
[1735672414061,8.09567432,195.39,195.33,1.6188]
[1735672415784,8.09567432,195.41,195.34,8.09567432]
[1735672415975,8.09567432,195.42,195.35,8.09567432]
[1735672416172,8.09567432,195.43,195.36,8.09567432]
[1735672417574,8.09567432,195.43,195.36,20.89187432]
[1735672418469,8.09567432,195.44,195.36,20.89187432]
[1735672418668,8.09567432,195.43,195.36,20.89187432]
[1735672419262,8.09567432,195.42,195.36,12.7962]
[1735672421291,8.09567432,195.43,195.36,20.89187432]
[1735672421491,8.09567432,195.42,195.34,8.09567432]
[1735672422190,8.09567432,195.42,195.35,8.09567432]
[1735672423603,8.09567432,195.4,195.33,14.4172]
[1735672423775,8.09567432,195.39,195.33,14.4172]
[1735672423982,8.09567432,195.4,195.33,22.51287432]
[1735672427101,8.09567432,195.41,195.34,8.09567432]
[1735672429308,8.09567432,195.4,195.33,22.51287432]
[1735672431597,23.776884,195.46,195.34,8.09567432]
[1735672431598,8.09567432,195.41,195.34,8.09567432]
[1735672438115,8.09567432,195.42,195.35,20.89317432]
[1735672441216,8.09567432,195.4,195.35,12.7975]
[1735672441410,8.09567432,195.42,195.35,20.89317432]
[1735672446016,8.09567432,195.43,195.36,8.09567432]
[1735672449122,8.09567432,195.43,195.35,12.7975]
[1735672449123,8.09567432,195.45,195.37,20.89187432]
[1735672449417,8.09567432,195.45,195.38,6.1939]
[1735672450117,6.55106027,195.47,195.39,20.89057432]
[1735672450327,8.09567432,195.48,195.41,8.09567432]
[1735672450813,8.09567432,195.48,195.4,1.5639]
[1735672450814,20.0,195.51,195.4,1.5639]
[1735672451027,8.09567432,195.49,195.42,8.09567432]
[1735672453896,8.09567432,195.47,195.41,12.7931]
[1735672454118,8.09567432,195.47,195.4,9.65957432]
[1735672454119,8.09567432,195.46,195.4,1.5639]
[1735672455217,8.09567432,195.45,195.4,1.5639]
[1735672455418,8.09567432,195.44,195.38,18.9894]
[1735672455918,8.09567432,195.44,195.38,6.1939]
[1735672456223,32.38269728,195.5,195.38,6.1939]
[1735672456224,8.09567432,195.4,195.38,6.1939]
[1735672456726,20.0,195.46,195.38,6.1939]
[1735672456922,8.09567432,195.41,195.35,14.3341]
[1735672458701,8.09567432,195.4,195.35,1.5368]
[1735672458906,8.09567432,195.39,195.35,1.5368]
[1735672459528,8.09567432,195.4,195.35,1.5368]
[1735672461933,8.09567432,195.39,195.33,6.0784]
[1735672462124,8.09567432,195.35,195.29,20.4164]
[1735672463221,8.09567432,195.36,195.29,28.51207432]
[1735672469639,8.09567432,195.33,195.29,7.6152]
[1735672470141,8.09567432,195.34,195.29,7.6152]
[1735672470516,8.09567432,195.33,195.29,6.0784]
[1735672470930,8.09567432,195.32,195.25,8.09567432]
[1735672471172,8.09567432,195.29,195.24,7.7959]
[1735672472149,8.09567432,195.28,195.24,6.1913]
[1735672473436,8.09567432,195.27,195.22,0.1066244]
[1735672474342,48.23399948,195.34,195.22,0.1066244]
[1735672474343,8.09567432,195.25,195.22,0.1066244]
[1735672477151,8.09567432,195.26,195.22,0.1066244]
[1735672477534,20.0,195.3,195.22,0.1066244]
[1735672477737,8.09567432,195.28,195.22,0.1066244]
[1735672479862,8.09567432,195.29,195.22,21.00779872]
[1735672480045,8.09567432,195.3,195.23,8.09567432]
[1735672480938,8.09567432,195.29,195.22,21.00779872]
[1735672481650,8.09567432,195.3,195.23,8.09567432]
[1735672482349,8.09567432,195.29,195.22,21.00779872]
[1735672486562,8.09567432,195.28,195.22,12.9121244]
[1735672486767,8.09567432,195.26,195.22,0.1066244]
[1735672491662,8.09567432,195.27,195.22,0.1066244]
[1735672495464,23.776884,195.32,195.22,0.1066244]
[1735672495669,8.09567432,195.29,195.22,0.1066244]
[1735672496359,8.09567432,195.29,195.22,8.20229872]
[1735672496665,28.09567432,195.3,195.23,8.09567432]
[1735672498270,28.09567432,195.3,195.22,8.20229872]
[1735672498671,8.09567432,195.26,195.22,0.1066244]
[1735672499002,20.0,195.31,195.22,0.1066244]
[1735672499270,8.09567432,195.28,195.22,0.1066244]
[1735672499771,8.09567432,195.27,195.22,0.1066244]
[1735672499984,20.0,195.3,195.22,0.1066244]
[1735672500147,8.09567432,195.29,195.22,8.20229872]
[1735672501264,8.09567432,195.29,195.22,0.1066244]
[1735672501470,8.09567432,195.29,195.22,12.9123244]
[1735672502573,8.09567432,195.28,195.22,0.1066244]
[1735672503263,8.09567432,195.29,195.22,0.1066244]
[1735672504365,8.09567432,195.28,195.22,0.1066244]
[1735672505697,8.09567432,195.26,195.22,0.1066244]
[1735672505901,8.09567432,195.24,195.22,0.1066244]
[1735672506088,8.09567432,195.23,195.22,0.1066244]
[1735672506916,8.09567432,195.25,195.22,0.1066244]
[1735672507191,20.0,195.28,195.22,0.1066244]
[1735672507366,8.09567432,195.25,195.22,0.1066244]
[1735672507562,8.09567432,195.24,195.22,0.1066244]
[1735672507768,8.09567432,195.23,195.22,0.1066244]
[1735672510467,31.87255832,195.23,195.22,0.1066244]
[1735672511787,38.5311738,195.23,195.22,0.1066244]
[1735672522921,23.776884,195.22,195.1,7.9378]
[1735672523118,8.09567432,195.15,195.1,7.9378]
[1735672523295,8.09567432,195.16,195.1,7.9378]
[1735672524307,8.09567432,195.15,195.1,7.9378]
[1735672524893,8.09567432,195.13,195.1,7.9378]
[1735672525299,8.09567432,195.15,195.1,7.9378]
[1735672527390,20.0,195.19,195.1,16.03347432]
[1735672527585,8.09567432,195.17,195.1,16.03347432]
[1735672528213,8.09567432,195.16,195.1,7.9378]
[1735672528608,8.09567432,195.12,195.1,7.9378]
[1735672528913,8.09567432,195.14,195.1,7.9378]
[1735672529690,8.09567432,195.13,195.1,7.9378]
[1735672530719,8.09567432,195.11,195.05,6.0082]
[1735672530891,20.0,195.16,195.05,6.0082]
[1735672530892,8.09567432,195.1,195.05,6.0082]
[1735672531305,8.09567432,195.11,195.05,6.0082]
[1735672531691,8.09567432,195.1,195.05,6.0082]
[1735672531891,8.09567432,195.08,195.04,1.5533]
[1735672532087,8.09567432,195.08,195.0,15.65717432]
[1735672532926,8.09567432,195.07,195.0,15.65717432]
[1735672533102,8.09567432,195.08,195.01,8.09567432]
[1735672533291,5.70777746,195.16,195.04,8.09567432]
[1735672533491,8.09567432,195.13,195.06,14.10387432]
[1735672534628,8.09567432,195.12,195.06,6.0082]
[1735672535023,8.09567432,195.07,195.01,6.0082]
[1735672535229,8.09567432,195.06,195.01,6.0082]
[1735672535404,8.09567432,195.1,195.03,8.09567432]
[1735672535726,5.70777746,195.18,195.06,8.09567432]
[1735672535913,5.70777746,195.18,195.07,8.09567432]
[1735672536224,8.09567432,195.14,195.07,9.64897432]
[1735672536815,8.09567432,195.13,195.07,1.5533]
[1735672538221,8.09567432,195.12,195.07,1.5533]
[1735672539914,8.09567432,195.1,195.03,8.09567432]
[1735672540110,8.09567432,195.07,195.02,1.5858]
[1735672540311,8.09567432,195.08,195.02,1.5858]
[1735672540523,8.09567432,195.09,195.02,9.68147432]
[1735672541314,8.09567432,195.08,195.02,1.5858]
[1735672541915,8.09567432,195.06,195.02,1.5858]
[1735672544563,8.09567432,195.05,195.02,1.5858]
[1735672544754,23.776884,195.09,195.02,1.5858]
[1735672544917,8.09567432,195.07,195.02,1.5858]
[1735672547226,8.09567432,195.06,195.02,1.5858]
[1735672547442,8.09567432,195.05,195.01,6.0082]
[1735672551075,8.09567432,195.04,194.97,14.4351]
[1735672551650,8.09567432,195.03,194.97,14.4351]
[1735672551989,8.09567432,195.01,194.96,6.3068]
[1735672552276,8.09567432,195.0,194.96,6.3068]
[1735672553276,8.09567432,194.97,194.91,1.6129]
[1735672556355,8.09567432,194.96,194.91,1.6129]
[1735672556554,8.09567432,194.95,194.91,1.6129]
[1735672557455,8.09567432,194.95,194.89,6.3068]
[1735672557875,8.09567432,194.96,194.9,8.09567432]
[1735672558275,5.70777746,195.05,194.93,8.09567432]
[1735672558471,8.09567432,195.01,194.94,8.09567432]
[1735672558771,8.09567432,195.02,194.96,8.09567432]
[1735672559677,23.776884,195.04,194.96,7.99567332]
[1735672559975,8.09567432,195.02,194.96,7.99567332]
[1735672560371,8.09567432,195.02,194.95,9.63477432]
[1735672560577,8.09567432,195.01,194.95,1.5391]
[1735672560974,8.09567432,195.02,194.96,8.09567432]
[1735672561182,8.09567432,195.02,194.95,9.63477432]
[1735672561475,8.09567432,195.01,194.95,1.5391]
[1735672561683,8.09567432,195.02,194.95,9.63477432]
[1735672561979,8.09567432,195.01,194.95,1.5391]
[1735672562271,23.776884,195.05,194.95,1.5391]
[1735672562272,8.09567432,195.0,194.95,1.5391]
[1735672563359,8.09567432,194.99,194.95,1.5391]
[1735672564067,8.09567432,194.99,194.92,8.09567432]
[1735672564263,8.09567432,194.98,194.91,22.46087432]
[1735672564465,8.09567432,194.97,194.91,14.3652]
[1735672564775,8.09567432,194.97,194.91,1.5391]
[1735672565356,8.09567432,194.96,194.91,1.5391]
[1735672569786,8.09567432,194.93,194.86,1.5391]
[1735672569963,8.09567432,194.92,194.86,1.5391]
[1735672570288,8.09567432,194.91,194.86,1.5391]
[1735672570777,8.09567432,194.89,194.85,6.4573]
[1735672571176,8.09567432,194.88,194.85,6.4573]
[1735672571877,8.09567432,194.88,194.81,9.63477432]
[1735672572089,8.09567432,194.86,194.81,1.5391]
[1735672573363,8.09567432,194.87,194.81,1.5391]
[1735672574689,8.09567432,194.86,194.81,1.5391]
[1735672574998,8.09567432,194.87,194.81,1.5391]
[1735672577467,6.5644,194.96,194.82,8.09567432]
[1735672577681,8.09567432,194.9,194.82,8.09567432]
[1735672577983,8.09567432,194.9,194.83,8.09567432]
[1735672578175,8.09567432,194.9,194.82,8.09567432]
[1735672579167,8.09567432,194.89,194.82,8.09567432]
[1735672579702,8.09567432,194.88,194.81,22.46737432]
[1735672579875,8.09567432,194.88,194.81,14.3717]
[1735672584988,8.09567432,194.87,194.81,14.3717]
[1735672585186,8.09567432,194.87,194.81,1.5391]
[1735672585393,8.09567432,194.86,194.81,1.5391]
[1735672588492,8.09567432,194.88,194.81,9.63477432]
[1735672588679,8.09567432,194.89,194.82,8.09567432]
[1735672588881,8.09567432,194.88,194.81,9.63477432]
[1735672589602,8.09567432,194.88,194.81,22.46717432]
[1735672590170,8.09567432,194.89,194.82,8.09567432]
[1735672590897,6.5644,194.96,194.82,8.09567432]
[1735672591082,7.13528214,194.97,194.86,8.09567432]
[1735672591083,8.09567432,194.93,194.86,8.09567432]
[1735672591496,8.09567432,194.94,194.87,8.09567432]
[1735672592585,8.09567432,194.97,194.9,8.09567432]
[1735672592789,8.09567432,194.98,194.91,8.09567432]
[1735672594509,1.5934,195.03,194.91,8.09567432]
[1735672594684,8.09567432,194.99,194.92,8.09567432]
[1735672597313,8.09567432,195.0,194.93,8.09567432]
[1735672598408,8.09567432,194.99,194.92,8.09567432]
[1735672598698,8.09567432,194.97,194.9,8.09567432]
[1735672600991,7.13528214,195.04,194.92,28.09567432]
[1735672600992,8.09567432,194.99,194.92,28.09567432]
[1735672601317,7.13528214,195.04,194.94,14.22167432]
[1735672601523,8.09567432,195.01,194.94,14.22167432]
[1735672601713,8.09567432,194.99,194.94,6.126]
[1735672602094,8.09567432,194.96,194.9,12.827]
[1735672602495,8.09567432,194.97,194.9,20.92267432]
[1735672602715,8.09567432,194.98,194.91,8.09567432]
[1735672603522,8.09567432,194.97,194.9,20.92267432]
[1735672604344,8.09567432,194.98,194.9,12.827]
[1735672604555,23.776884,195.03,194.93,20.0]
[1735672604842,8.09567432,195.0,194.93,28.09567432]
[1735672605024,8.09567432,195.01,194.94,20.92007432]
[1735672606832,8.09567432,195.0,194.94,12.8244]
[1735672607131,8.09567432,195.01,194.94,12.8244]
[1735672607732,8.09567432,195.0,194.94,12.8244]
[1735672608530,8.09567432,195.01,194.94,20.92007432]
[1735672608734,8.09567432,195.02,194.96,6.3315]
[1735672609116,8.09567432,195.03,194.96,27.24987432]
[1735672611127,8.09567432,195.04,194.97,8.09567432]
[1735672611526,8.09567432,195.03,194.96,27.24987432]
[1735672611934,8.09567432,195.04,194.96,27.24987432]
[1735672612232,8.09567432,195.04,194.97,8.09567432]
[1735672612435,8.09567432,195.05,194.98,20.91747432]
[1735672612814,8.09567432,195.04,194.98,12.8218]
[1735672613640,8.09567432,195.05,194.98,20.91747432]
[1735672615421,8.09567432,195.06,194.98,20.91747432]
[1735672615941,8.09567432,195.06,194.99,8.09567432]
[1735672616442,8.09567432,195.06,194.98,20.91747432]
[1735672617038,8.09567432,195.04,194.98,12.8218]
[1735672617919,8.09567432,195.03,194.99,20.0]
[1735672619757,8.09567432,195.01,194.96,6.3315]
[1735672620342,8.09567432,195.02,194.96,6.3315]
[1735672620844,8.09567432,195.01,194.96,6.3315]
[1735672621044,8.09567432,195.02,194.96,6.3315]
[1735672622015,36.592484,195.08,194.96,6.3315]
[1735672622016,8.09567432,195.01,194.96,6.3315]
[1735672624237,8.09567432,195.0,194.96,6.3315]
[1735672624935,8.09567432,195.01,194.96,6.3315]
[1735672625136,8.09567432,195.03,194.96,14.42717432]
[1735672625730,8.09567432,195.02,194.96,6.3315]
[1735672627530,8.09567432,195.04,194.96,27.24997432]
[1735672627736,8.09567432,195.05,194.98,8.09567432]